fUSD/lending_fUSD_20260702
["ID","MTS","AMOUNT","RATE_DAILY","PERIOD"]
[426883914,1782979839000,-1419.18258688,0.000277,2]
[426883912,1782979839000,-2139.44384141,0.00027661,14]
[426883921,1782979839000,-189.19586709,0.00027895,2]
[426883919,1782979839000,-686.0,0.00027819,2]
[426883918,1782979839000,-271.73,0.000278,7]
[426883916,1782979839000,-2816.56115103,0.000277,2]
[426883917,1782979839000,-154.57,0.00027767,7]
[426883923,1782979839000,-500.0,0.00027999,7]
[426883922,1782979839000,-161.66,0.00027954,2]
[426883927,1782979839000,-2816.56115103,0.00028,2]
[426883926,1782979839000,-10382.73712563,0.00028,2]
[426883925,1782979839000,-1419.18258688,0.00028,2]
[426883871,1782979839000,-150.0,0.000268,2]
[426883924,1782979839000,-11728.90636612,0.00028,8]
[426883898,1782979839000,-14477.82638768,0.00027419,2]
[426883903,1782979839000,-500.0,0.000275,7]
[426883920,1782979839000,-860.55972567,0.00027845,2]
[426883899,1782979839000,-7908.46057476,0.00027456,2]
[426883874,1782979839000,-189.0,0.00027,2]
[426883901,1782979839000,-10382.73712563,0.000275,2]
[426883873,1782979839000,-1100.0,0.000269,9]
[426883875,1782979839000,-177.0,0.00027,2]
[426883877,1782979839000,-227.79,0.00027046,14]
[426883876,1782979839000,-150.0,0.00027006,5]
[426883879,1782979839000,-2683.32320728,0.00027093,2]
[426883880,1782979839000,-161.87,0.00027145,7]
[426883881,1782979839000,-1419.18258688,0.000272,2]
[426883882,1782979839000,-189.77159536,0.000272,2]
[426883878,1782979839000,-189.19586709,0.00027073,2]
[426883872,1782979839000,-800.0,0.000268,9]
[426883883,1782979839000,-10382.73712563,0.000272,2]
[426883885,1782979839000,-216.69616408,0.00027202,2]
[426883897,1782979839000,-160.0,0.000274,7]
[426883892,1782979839000,-1500.0,0.00027397,2]
[426883894,1782979839000,-213.08,0.000274,7]
[426883895,1782979839000,-619.83,0.000274,7]
[426883893,1782979839000,-1211.86,0.00027397,90]
[426883896,1782979839000,-12137.85,0.000274,7]
[426883886,1782979839000,-160.0,0.00027256,2]
[426883884,1782979839000,-2816.56115103,0.000272,2]
[426883887,1782979839000,-1161.71,0.00027295,7]
[426883889,1782979839000,-180.86328756,0.00027358,2]
[426883891,1782979839000,-686.0,0.00027397,2]
[426883888,1782979839000,-189.19586709,0.00027347,2]
[426883890,1782979839000,-753.28,0.00027396,2]
[426883973,1782979840000,-500.0,0.00028493,2]
[426883969,1782979840000,-500.0,0.00028493,2]
[426883966,1782979840000,-500.0,0.00028493,2]
[426883970,1782979840000,-500.0,0.00028493,2]
[426883967,1782979840000,-500.0,0.00028493,2]
[426883961,1782979840000,-238.78748961,0.00028493,2]
[426883968,1782979840000,-500.0,0.00028493,2]
[426883965,1782979840000,-500.0,0.00028493,2]
[426883963,1782979840000,-500.0,0.00028493,2]
[426883972,1782979840000,-500.0,0.00028493,2]
[426883962,1782979840000,-500.0,0.00028493,2]
[426883971,1782979840000,-500.0,0.00028493,2]
[426883976,1782979840000,-500.0,0.00028493,2]
[426883996,1782979840000,-170.32,0.00028587,3]
[426883979,1782979840000,-500.0,0.00028493,2]
[426883977,1782979840000,-500.0,0.00028493,2]
[426883978,1782979840000,-577.62717727,0.00028493,2]
[426883975,1782979840000,-500.0,0.00028493,2]
[426883985,1782979840000,-500.0,0.00028493,2]
[426883982,1782979840000,-500.0,0.00028493,2]
[426883980,1782979840000,-616.0,0.00028493,2]
[426883981,1782979840000,-500.0,0.00028493,2]
[426883984,1782979840000,-500.0,0.00028493,2]
[426883983,1782979840000,-500.0,0.00028493,2]
[426883987,1782979840000,-500.0,0.00028493,2]
[426883960,1782979840000,-150.0,0.00028493,2]
[426883974,1782979840000,-251.96742602,0.00028493,2]
[426883959,1782979840000,-150.0,0.00028493,2]
[426883928,1782979840000,-42775.98,0.00028,2]
[426883958,1782979840000,-150.0,0.00028493,2]
[426883997,1782979840000,-1598.05583883,0.00028599,2]
[426883936,1782979840000,-686.0,0.0002803,2]
[426883935,1782979840000,-180.86328756,0.00028016,2]
[426883930,1782979840000,-11281.05,0.00028,2]
[426883929,1782979840000,-8845.46,0.00028,2]
[426883932,1782979840000,-189.0,0.00028,2]
[426883933,1782979840000,-177.0,0.00028,2]
[426883937,1782979840000,-1125.78,0.0002809,7]
[426883948,1782979840000,-1419.18258688,0.000283,2]
[426883940,1782979840000,-775.5392682,0.00028143,5]
[426883939,1782979840000,-12137.85,0.000281,7]
[426883941,1782979840000,-2894.7402,0.00028161,14]
[426883938,1782979840000,-619.83,0.000281,7]
[426883945,1782979840000,-14477.82638768,0.00028276,2]
[426883943,1782979840000,-2683.32320728,0.0002819,2]
[426883944,1782979840000,-686.0,0.0002824,2]
[426883942,1782979840000,-189.19586709,0.00028169,2]
[426883946,1782979840000,-13737.55832756,0.00028293,2]
[426883947,1782979840000,-213.08,0.000283,7]
[426883949,1782979840000,-10382.73712563,0.000283,2]
[426883950,1782979840000,-2816.56115103,0.000283,2]
[426883956,1782979840000,-189.19586709,0.00028443,2]
[426883954,1782979840000,-941.83,0.00028407,7]
[426883955,1782979840000,-969.46,0.00028408,7]
[426883952,1782979840000,-1129.35,0.00028364,7]
[426883953,1782979840000,-7905.59,0.00028364,7]
[426883951,1782979840000,-753.28,0.00028344,7]
[426883957,1782979840000,-686.0,0.00028451,2]
[426883986,1782979840000,-500.0,0.00028493,2]
[426884044,1782979840000,-213.08,0.000291,7]
[426883991,1782979840000,-500.0,0.00028493,2]
[426884012,1782979840000,-377.547146,0.00028797,2]
[426884024,1782979840000,-189.19586709,0.00028991,2]
[426884026,1782979840000,-753.28,0.00028999,7]
[426884027,1782979840000,-500.0,0.00028999,7]
[426884025,1782979840000,-666.0,0.00028999,10]
[426884028,1782979840000,-500.0,0.00028999,7]
[426884035,1782979840000,-209.0,0.00029,2]
[426884031,1782979840000,-168.98,0.00029,7]
[426884033,1782979840000,-150.0,0.00029,7]
[426884029,1782979840000,-283661.21815791,0.00029,5]
[426884030,1782979840000,-1256.62575978,0.00029,7]
[426884034,1782979840000,-252.0,0.00029,7]
[426884010,1782979840000,-612.93854249,0.00028767,30]
[426884032,1782979840000,-150.0,0.00029,7]
[426884047,1782979840000,-14477.82638768,0.00029133,2]
[426884036,1782979840000,-154.0,0.00029,4]
[426884046,1782979840000,-2816.56115103,0.000291,2]
[426884045,1782979840000,-10382.73712563,0.000291,2]
[426884043,1782979840000,-200.0,0.00029099,2]
[426884038,1782979840000,-154.0,0.00029,4]
[426884039,1782979840000,-204.0,0.00029,2]
[426884041,1782979840000,-216.69616408,0.00029,2]
[426884042,1782979840000,-210.53048927,0.00029083,2]
[426884040,1782979840000,-195.59958435,0.00029,2]
[426884050,1782979840000,-773.0,0.00029167,5]
[426884049,1782979840000,-747.0,0.00029167,5]
[426884037,1782979840000,-154.0,0.00029,4]
[426884021,1782979840000,-73125.12741403,0.0002897,6]
[426884048,1782979840000,-753.28,0.00029166,7]
[426884020,1782979840000,-1300.0,0.000289,10]
[426884011,1782979840000,-31737.8314819,0.00028797,2]
[426883993,1782979840000,-328.46275027,0.00028493,2]
[426883992,1782979840000,-500.0,0.00028493,2]
[426883989,1782979840000,-500.0,0.00028493,2]
[426883995,1782979840000,-170.32,0.00028587,3]
[426883994,1782979840000,-481.73,0.00028553,2]
[426883990,1782979840000,-500.0,0.00028493,2]
[426883999,1782979840000,-15730.62276641,0.000286,7]
[426884001,1782979840000,-2816.56115103,0.000286,2]
[426884007,1782979840000,-189.19586709,0.00028717,2]
[426883998,1782979840000,-271.73,0.000286,7]
[426884004,1782979840000,-1348.22543929,0.00028646,15]
[426884005,1782979840000,-223.98062295,0.00028662,2]
[426884006,1782979840000,-180.86328756,0.00028674,2]
[426883988,1782979840000,-500.0,0.00028493,2]
[426884008,1782979840000,-181.84,0.0002875,30]
[426884002,1782979840000,-162.89,0.00028605,2]
[426884016,1782979840000,-13737.55832756,0.00028859,2]
[426884023,1782979840000,-1130.55320218,0.0002899,2]
[426884013,1782979840000,-24880.0701797,0.00028797,2]
[426884019,1782979840000,-2816.56115103,0.000289,2]
[426884018,1782979840000,-10382.73712563,0.000289,2]
[426884022,1782979840000,-860.55972567,0.0002899,2]
[426884017,1782979840000,-210.53048927,0.00028872,2]
[426884003,1782979840000,-681.0,0.00028617,5]
[426884000,1782979840000,-10382.73712563,0.000286,2]
[426884009,1782979840000,-1000.0,0.00028767,30]
[426884014,1782979840000,-619.83,0.000288,7]
[426884015,1782979840000,-12137.85,0.000288,7]
[426884083,1782979841000,-2133.97493148,0.00029739,2]
[426884088,1782979841000,-733.0,0.000298,2]
[426884085,1782979841000,-503.00784065,0.00029783,2]
[426884086,1782979841000,-317.0,0.000298,2]
[426884081,1782979841000,-658.46,0.00029726,2]
[426884080,1782979841000,-2816.56115103,0.000297,2]
[426884082,1782979841000,-844.14183766,0.00029739,2]
[426884087,1782979841000,-310.0,0.000298,2]
[426884084,1782979841000,-166.66,0.00029756,2]
[426884089,1782979841000,-189.19586709,0.00029813,2]
[426884093,1782979841000,-2000.0,0.000299,2]
[426884091,1782979841000,-500.0,0.00029899,60]
[426884090,1782979841000,-224.82254972,0.00029866,2]
[426884092,1782979841000,-213.08,0.000299,7]
[426884094,1782979841000,-200.0,0.000299,10]
[426884079,1782979841000,-10382.73712563,0.000297,2]
[426884096,1782979841000,-500.0,0.00029975,19]
[426884099,1782979841000,-180.86328756,0.0002999,2]
[426884098,1782979841000,-13737.55832756,0.0002999,2]
[426884100,1782979841000,-300.0,0.00029999,10]
[426884095,1782979841000,-210.53048927,0.00029926,2]
[426884097,1782979841000,-14477.82638768,0.0002999,2]
[426884104,1782979841000,-800.0,0.0003,2]
[426884101,1782979841000,-753.28,0.00029999,7]
[426884078,1782979841000,-250.0,0.00029678,7]
[426884071,1782979841000,-619.83,0.000295,7]
[426884074,1782979841000,-358.958,0.00029534,30]
[426884102,1782979841000,-500.0,0.00029999,7]
[426884053,1782979841000,-231.0,0.00029228,10]
[426884051,1782979841000,-803.0,0.00029167,5]
[426884052,1782979841000,-350.0,0.0002921,13]
[426884054,1782979841000,-189.19586709,0.00029265,2]
[426884056,1782979841000,-2000.0,0.000293,2]
[426884055,1782979841000,-2683.32320728,0.00029287,2]
[426884064,1782979841000,-2816.56115103,0.000294,2]
[426884061,1782979841000,-1234.848,0.00029389,2]
[426884059,1782979841000,-658.46,0.00029315,2]
[426884062,1782979841000,-271.73,0.000294,7]
[426884076,1782979841000,-399.61385516,0.00029653,2]
[426884057,1782979841000,-2000.0,0.000293,2]
[426884063,1782979841000,-10382.73712563,0.000294,2]
[426884060,1782979841000,-180.86328756,0.00029332,2]
[426884067,1782979841000,-152.61433426,0.00029448,2]
[426884077,1782979841000,-163.80783072,0.00029678,2]
[426884066,1782979841000,-13737.55832756,0.00029424,2]
[426884069,1782979841000,-3652.0,0.00029477,2]
[426884068,1782979841000,-394.56633535,0.00029452,14]
[426884070,1782979841000,-6089.0,0.00029477,2]
[426884075,1782979841000,-189.19586709,0.00029539,2]
[426884072,1782979841000,-12137.85,0.000295,7]
[426884073,1782979841000,-210.53048927,0.00029505,2]
[426884065,1782979841000,-626.14147558,0.00029414,2]
[426884058,1782979841000,-2000.0,0.000293,2]
[426884109,1782979841000,-12499.99,0.0003,2]
[426884103,1782979841000,-500.0,0.00029999,7]
[426884136,1782979841000,-12499.99,0.0003,2]
[426884135,1782979841000,-12499.99,0.0003,2]
[426884138,1782979841000,-12499.99,0.0003,2]
[426884143,1782979841000,-626.14147558,0.00030061,2]
[426884140,1782979841000,-5864.50644178,0.00030001,2]
[426884142,1782979841000,-753.28,0.0003006,7]
[426884137,1782979841000,-12500.0,0.0003,2]
[426884144,1782979841000,-400.0,0.0003007,2]
[426884139,1782979841000,-372.49695097,0.00030001,2]
[426884145,1782979841000,-400.0,0.0003007,2]
[426884141,1782979841000,-193.0744829,0.00030002,2]
[426884129,1782979841000,-696.39431812,0.0003,15]
[426884148,1782979841000,-300.0,0.00030088,10]
[426884153,1782979841000,-500.0,0.00030089,7]
[426884149,1782979841000,-300.0,0.00030089,10]
[426884151,1782979841000,-56573.88,0.00030089,2]
[426884147,1782979841000,-189.19586709,0.00030087,2]
[426884152,1782979841000,-753.28,0.00030089,7]
[426884154,1782979841000,-434372.83954235,0.0003009,2]
[426884156,1782979841000,-151.0,0.0003009,7]
[426884155,1782979841000,-151.0,0.0003009,7]
[426884158,1782979841000,-151.0,0.0003009,7]
[426884157,1782979841000,-151.0,0.0003009,7]
[426884107,1782979841000,-12499.9,0.0003,2]
[426884150,1782979841000,-300.0,0.00030089,10]
[426884132,1782979841000,-12499.99,0.0003,2]
[426884146,1782979841000,-700.0,0.0003007,2]
[426884127,1782979841000,-25000.0,0.0003,2]
[426884105,1782979841000,-800.0,0.0003,2]
[426884130,1782979841000,-10382.73712563,0.0003,2]
[426884110,1782979841000,-12499.99,0.0003,2]
[426884112,1782979841000,-193.0,0.0003,2]
[426884111,1782979841000,-634.49,0.0003,2]
[426884106,1782979841000,-9999.99,0.0003,2]
[426884108,1782979841000,-12499.99,0.0003,2]
[426884115,1782979841000,-12500.0,0.0003,2]
[426884116,1782979841000,-25000.0,0.0003,2]
[426884113,1782979841000,-12499.99,0.0003,2]
[426884122,1782979841000,-15000.0,0.0003,2]
[426884118,1782979841000,-14999.99,0.0003,2]
[426884114,1782979841000,-2526.61,0.0003,2]
[426884133,1782979841000,-12499.99,0.0003,2]
[426884134,1782979841000,-598289.23457407,0.0003,2]
[426884120,1782979841000,-2500.0,0.0003,2]
[426884131,1782979841000,-12500.0,0.0003,2]
[426884126,1782979841000,-12500.0,0.0003,2]
[426884125,1782979841000,-800.0,0.0003,2]
[426884128,1782979841000,-12500.0,0.0003,2]
[426884123,1782979841000,-12499.99,0.0003,2]
[426884119,1782979841000,-1616.1,0.0003,2]
[426884117,1782979841000,-12500.0,0.0003,2]
[426884121,1782979841000,-10000.0,0.0003,2]
[426884124,1782979841000,-15000.0,0.0003,2]
[426884203,1782979842000,-442.076767,0.0003009,7]
[426884197,1782979842000,-3854.46235,0.0003009,7]
[426884202,1782979842000,-3854.46235,0.0003009,7]
[426884200,1782979842000,-3854.46235,0.0003009,7]
[426884199,1782979842000,-442.076767,0.0003009,7]
[426884188,1782979842000,-296.643713,0.0003009,7]
[426884196,1782979842000,-151.0,0.0003009,7]
[426884193,1782979842000,-1358.479685,0.0003009,7]
[426884194,1782979842000,-445.729692,0.0003009,7]
[426884189,1782979842000,-1358.479685,0.0003009,7]
[426884198,1782979842000,-3854.46235,0.0003009,7]
[426884195,1782979842000,-151.0,0.0003009,7]
[426884201,1782979842000,-442.076767,0.0003009,7]
[426884213,1782979842000,-15000.0,0.000301,2]
[426884205,1782979842000,-813.672512,0.0003009,7]
[426884217,1782979842000,-150.0,0.0003011,5]
[426884208,1782979842000,-813.672512,0.0003009,7]
[426884207,1782979842000,-813.672512,0.0003009,7]
[426884209,1782979842000,-300.0,0.00030099,10]
[426884206,1782979842000,-813.672512,0.0003009,7]
[426884204,1782979842000,-442.076767,0.0003009,7]
[426884210,1782979842000,-300.0,0.00030099,10]
[426884211,1782979842000,-753.28,0.00030099,7]
[426884212,1782979842000,-431.39476623,0.00030099,7]
[426884214,1782979842000,-109470.71964013,0.000301,7]
[426884187,1782979842000,-1358.479685,0.0003009,7]
[426884215,1782979842000,-252.0,0.000301,7]
[426884190,1782979842000,-445.729692,0.0003009,7]
[426884165,1782979842000,-151.0,0.0003009,7]
[426884185,1782979842000,-445.729692,0.0003009,7]
[426884160,1782979842000,-620.012913,0.0003009,7]
[426884161,1782979842000,-620.012913,0.0003009,7]
[426884159,1782979842000,-620.012913,0.0003009,7]
[426884164,1782979842000,-151.0,0.0003009,7]
[426884163,1782979842000,-620.012913,0.0003009,7]
[426884167,1782979842000,-156.488624,0.0003009,7]
[426884162,1782979842000,-151.0,0.0003009,7]
[426884166,1782979842000,-155.354817,0.0003009,7]
[426884168,1782979842000,-151.0,0.0003009,7]
[426884179,1782979842000,-1215.834955,0.0003009,7]
[426884170,1782979842000,-601.508497,0.0003009,7]
[426884169,1782979842000,-151.0,0.0003009,7]
[426884171,1782979842000,-164.39336,0.0003009,7]
[426884172,1782979842000,-601.508497,0.0003009,7]
[426884173,1782979842000,-601.508497,0.0003009,7]
[426884174,1782979842000,-601.508497,0.0003009,7]
[426884175,1782979842000,-1012.938534,0.0003009,7]
[426884178,1782979842000,-1012.938534,0.0003009,7]
[426884176,1782979842000,-1012.938534,0.0003009,7]
[426884177,1782979842000,-1012.938534,0.0003009,7]
[426884181,1782979842000,-1215.834955,0.0003009,7]
[426884192,1782979842000,-445.729692,0.0003009,7]
[426884180,1782979842000,-1215.834955,0.0003009,7]
[426884184,1782979842000,-296.643713,0.0003009,7]
[426884191,1782979842000,-1358.479685,0.0003009,7]
[426884183,1782979842000,-296.643713,0.0003009,7]
[426884182,1782979842000,-1215.834955,0.0003009,7]
[426884186,1782979842000,-296.643713,0.0003009,7]
[426884219,1782979842000,-12500.0,0.00030125,2]
[426884216,1782979842000,-150.0,0.0003011,5]
[426884221,1782979842000,-300.0,0.00030135,10]
[426884249,1782979842000,-2000.0,0.00030136,2]
[426884253,1782979842000,-2000.0,0.00030136,2]
[426884262,1782979842000,-2000.0,0.00030136,2]
[426884263,1782979842000,-2000.0,0.00030136,2]
[426884255,1782979842000,-2000.0,0.00030136,2]
[426884264,1782979842000,-2000.0,0.00030136,2]
[426884254,1782979842000,-2000.0,0.00030136,2]
[426884261,1782979842000,-2000.0,0.00030136,2]
[426884257,1782979842000,-2000.0,0.00030136,2]
[426884260,1782979842000,-2000.0,0.00030136,2]
[426884259,1782979842000,-2000.0,0.00030136,2]
[426884256,1782979842000,-2000.0,0.00030136,2]
[426884258,1782979842000,-2000.0,0.00030136,2]
[426884265,1782979842000,-2000.0,0.00030136,2]
[426884266,1782979842000,-2000.0,0.00030136,2]
[426884267,1782979842000,-2000.0,0.00030136,2]
[426884268,1782979842000,-2000.0,0.00030136,2]
[426884276,1782979842000,-2000.0,0.00030136,2]
[426884270,1782979842000,-2000.0,0.00030136,2]
[426884269,1782979842000,-2000.0,0.00030136,2]
[426884271,1782979842000,-2000.0,0.00030136,2]
[426884273,1782979842000,-2000.0,0.00030136,2]
[426884272,1782979842000,-2000.0,0.00030136,2]
[426884274,1782979842000,-2000.0,0.00030136,2]
[426884275,1782979842000,-2000.0,0.00030136,2]
[426884277,1782979842000,-2000.0,0.00030136,2]
[426884279,1782979842000,-2000.0,0.00030136,2]
[426884246,1782979842000,-627.54,0.00030136,2]
[426884247,1782979842000,-627.66755963,0.00030136,2]
[426884218,1782979842000,-163.9566741,0.0003011,5]
[426884245,1782979842000,-627.54,0.00030136,2]
[426884251,1782979842000,-2000.0,0.00030136,2]
[426884222,1782979842000,-300.0,0.00030135,10]
[426884220,1782979842000,-12500.0,0.00030125,2]
[426884225,1782979842000,-627.54,0.00030136,2]
[426884226,1782979842000,-627.54,0.00030136,2]
[426884228,1782979842000,-627.54,0.00030136,2]
[426884223,1782979842000,-860.55972567,0.00030135,2]
[426884227,1782979842000,-627.54,0.00030136,2]
[426884229,1782979842000,-627.54,0.00030136,2]
[426884237,1782979842000,-627.54,0.00030136,2]
[426884235,1782979842000,-627.54,0.00030136,2]
[426884236,1782979842000,-627.54,0.00030136,2]
[426884239,1782979842000,-627.54,0.00030136,2]
[426884224,1782979842000,-627.54,0.00030136,2]
[426884240,1782979842000,-627.54,0.00030136,2]
[426884238,1782979842000,-627.54,0.00030136,2]
[426884250,1782979842000,-2000.0,0.00030136,2]
[426884248,1782979842000,-2000.0,0.00030136,2]
[426884252,1782979842000,-2000.0,0.00030136,2]
[426884241,1782979842000,-627.54,0.00030136,2]
[426884244,1782979842000,-627.54,0.00030136,2]
[426884243,1782979842000,-627.54,0.00030136,2]
[426884242,1782979842000,-627.54,0.00030136,2]
[426884233,1782979842000,-627.54,0.00030136,2]
[426884232,1782979842000,-627.54,0.00030136,2]
[426884230,1782979842000,-627.54,0.00030136,2]
[426884234,1782979842000,-627.54,0.00030136,2]
[426884231,1782979842000,-627.54,0.00030136,2]
[426884313,1782979843000,-500.0,0.00030136,30]
[426884305,1782979843000,-1072.17329972,0.00030136,2]
[426884311,1782979843000,-753.47872663,0.00030136,7]
[426884308,1782979843000,-753.28,0.00030136,7]
[426884312,1782979843000,-500.0,0.00030136,30]
[426884303,1782979843000,-2000.0,0.00030136,2]
[426884315,1782979843000,-500.0,0.00030136,15]
[426884320,1782979843000,-500.0,0.00030136,15]
[426884330,1782979843000,-235.35724197,0.00030137,30]
[426884328,1782979843000,-475.46293887,0.00030137,2]
[426884314,1782979843000,-500.0,0.00030136,30]
[426884316,1782979843000,-500.0,0.00030136,15]
[426884317,1782979843000,-500.0,0.00030136,15]
[426884309,1782979843000,-753.28,0.00030136,7]
[426884326,1782979843000,-237.73146944,0.00030137,2]
[426884297,1782979843000,-2000.0,0.00030136,2]
[426884290,1782979843000,-2000.0,0.00030136,2]
[426884307,1782979843000,-753.28,0.00030136,7]
[426884286,1782979843000,-2000.0,0.00030136,2]
[426884288,1782979843000,-2000.0,0.00030136,2]
[426884321,1782979843000,-510.87608659,0.00030136,15]
[426884294,1782979843000,-2000.0,0.00030136,2]
[426884292,1782979843000,-2000.0,0.00030136,2]
[426884282,1782979843000,-2000.0,0.00030136,2]
[426884310,1782979843000,-753.28,0.00030136,7]
[426884295,1782979843000,-2000.0,0.00030136,2]
[426884283,1782979843000,-2000.0,0.00030136,2]
[426884281,1782979843000,-2000.0,0.00030136,2]
[426884285,1782979843000,-2000.0,0.00030136,2]
[426884296,1782979843000,-2000.0,0.00030136,2]
[426884300,1782979843000,-2000.0,0.00030136,2]
[426884299,1782979843000,-2000.0,0.00030136,2]
[426884284,1782979843000,-2000.0,0.00030136,2]
[426884323,1782979843000,-482.09306769,0.00030137,2]
[426884343,1782979843000,-2673.00220165,0.0003014,4]
[426884319,1782979843000,-500.0,0.00030136,15]
[426884324,1782979843000,-723.13960153,0.00030137,2]
[426884349,1782979843000,-2673.00220165,0.0003014,4]
[426884348,1782979843000,-2673.00220165,0.0003014,4]
[426884354,1782979843000,-857.34192344,0.0003014,4]
[426884347,1782979843000,-2673.00220165,0.0003014,4]
[426884352,1782979843000,-857.34192344,0.0003014,4]
[426884351,1782979843000,-857.34192344,0.0003014,4]
[426884353,1782979843000,-857.34192344,0.0003014,4]
[426884357,1782979843000,-150.20302865,0.0003014,4]
[426884358,1782979843000,-857.34192344,0.0003014,4]
[426884359,1782979843000,-64.47030048,0.0003014,4]
[426884361,1782979843000,-431.96172772,0.0003014,4]
[426884362,1782979843000,-286.33685265,0.0003014,4]
[426884360,1782979843000,-360.90989524,0.0003014,4]
[426884363,1782979843000,-374.68915625,0.0003014,4]
[426884344,1782979843000,-2673.00220165,0.0003014,4]
[426884346,1782979843000,-2673.00220165,0.0003014,4]
[426884350,1782979843000,-2673.00220165,0.0003014,4]
[426884355,1782979843000,-857.34192344,0.0003014,4]
[426884322,1782979843000,-241.04653384,0.00030137,2]
[426884331,1782979843000,-658.473,0.00030137,2]
[426884333,1782979843000,-2981.28922354,0.00030137,7]
[426884335,1782979843000,-220.0,0.00030137,7]
[426884345,1782979843000,-2673.00220165,0.0003014,4]
[426884334,1782979843000,-2981.28922354,0.00030137,7]
[426884336,1782979843000,-300.0,0.00030139,10]
[426884337,1782979843000,-300.0,0.00030139,10]
[426884338,1782979843000,-2673.00220165,0.0003014,4]
[426884341,1782979843000,-2673.00220165,0.0003014,4]
[426884339,1782979843000,-2673.00220165,0.0003014,4]
[426884332,1782979843000,-222.17560267,0.00030137,30]
[426884342,1782979843000,-2673.00220165,0.0003014,4]
[426884356,1782979843000,-707.13889479,0.0003014,4]
[426884340,1782979843000,-2673.00220165,0.0003014,4]
[426884375,1782979844000,-1148.14206894,0.00015426,2]
[426884369,1782979844000,-857.34192344,0.0003014,4]
[426884367,1782979844000,-196.31591454,0.0003014,4]
[426884372,1782979844000,-347.4536916,0.0003014,4]
[426884371,1782979844000,-857.34192344,0.0003014,4]
[426884370,1782979844000,-857.34192344,0.0003014,4]
[426884376,1782979844000,-1665.85186041,0.00027397,10]
[426884378,1782979844000,-2827.95137309,0.00027397,10]
[426884379,1782979844000,-509.88823184,0.0003014,4]
[426884377,1782979844000,-1070.5667665,0.00027397,10]
[426884383,1782979844000,-1877.07081917,0.0003014,4]
[426884384,1782979844000,-908.04121243,0.0003014,4]
[426884382,1782979844000,-1877.07081917,0.0003014,4]
[426884381,1782979844000,-1877.07081917,0.0003014,4]
[426884380,1782979844000,-1877.07081917,0.0003014,4]
[426884385,1782979845000,-539.34622638,0.0003014,4]
[426884401,1782979846000,-1877.07081917,0.0003014,4]
[426884402,1782979846000,-151.0,0.0003014,7]
[426884398,1782979846000,-1419.32683593,0.0003014,4]
[426884403,1782979846000,-151.0,0.0003014,7]
[426884404,1782979846000,-151.0,0.0003014,7]
[426884396,1782979846000,-57.48020962,0.0003014,4]
[426884412,1782979846000,-151.0,0.0003014,7]
[426884400,1782979846000,-1877.07081917,0.0003014,4]
[426884397,1782979846000,-400.26377362,0.0003014,4]
[426884392,1782979846000,-1197.04295122,0.0003014,4]
[426884395,1782979846000,-680.02786795,0.0003014,4]
[426884391,1782979846000,-1877.07081917,0.0003014,4]
[426884406,1782979846000,-252.611124,0.0003014,7]
[426884389,1782979846000,-958.21002724,0.0003014,4]
[426884386,1782979846000,-429.68338036,0.0003014,4]
[426884390,1782979846000,-255.09615892,0.0003014,4]
[426884388,1782979846000,-663.76463301,0.0003014,4]
[426884387,1782979846000,-1877.07081917,0.0003014,4]
[426884399,1782979846000,-1877.07081917,0.0003014,4]
[426884408,1782979846000,-252.611124,0.0003014,7]
[426884419,1782979846000,-151.0,0.0003014,7]